Workbook

Sheet Menu
E26: Empresa: | G26: Empresa ABCDE

Sheet Veic
B10: Empresa: | C10: =Menu!G26 -> Empresa ABCDE
B12: CADASTROS DE VEÍCULOS Insira os dados dos veículos. | J12: =SUM(J14:J43) -> 2 | K12: =SUM(K14:K43) -> 3 | M12: =SUM(M14:M43) -> 2,350 | O12: =SUM(O14:O43) -> 5 | P12: =SUM(P14:P43) -> 40,500 | Q12: =SUM(Q14:Q43) -> 4,400 | R12: =SUM(R14:R43) -> 13,950 | S12: =SUM(S14:S43) -> 36,100
B13: ITEM | C13: VEÍCULO | D13: PLACA | E13: RENAVAM | J13: Preventiva | K13: Corretiva | M13: DespesaManut | O13: Fretes | P13: ReceitasFretes | Q13: DespesasFrete | R13: KM Rodado | S13: Saldo
B14: 1 | C14: CAMINHÃO VW 180 | D14: ABC1234 | E14: 123456789 | J14: =COUNTIFS(Manut!$D$14:$D$1000,Veic!J$13,Manut!$C$14:$C$1000,Veic!$C14) -> 1 | K14: =COUNTIFS(Manut!$D$14:$D$1000,Veic!K$13,Manut!$C$14:$C$1000,Veic!$C14) -> 2 | M14: =SUMIF(Manut!$C$14:$C$1000,Veic!C14,Manut!$F$14:$F$1000) -> 1,950 | O14: =COUNTIF(Frete!$C$14:$C$1000,Veic!C14) -> 3 | P14: =SUMIF(Frete!$C$14:$C$1000,Veic!C14,Frete!$I$14:$I$1000) -> 31,500 | Q14: =SUMIF(Frete!$C$14:$C$1000,Veic!C14,Frete!$M$14:$M$1000) -> 2,800 | R14: =SUMIF(Frete!$C$14:$C$1000,Veic!C14,Frete!$H$14:$H$1000) -> 5,950 | S14: =P14-Q14 -> 28,700
B15: 2 | C15: UNO FILE 1.0 | D15: AAA5555 | E15: 222222222 | J15: =COUNTIFS(Manut!$D$14:$D$1000,Veic!J$13,Manut!$C$14:$C$1000,Veic!$C15) -> 1 | K15: =COUNTIFS(Manut!$D$14:$D$1000,Veic!K$13,Manut!$C$14:$C$1000,Veic!$C15) -> 1 | M15: =SUMIF(Manut!$C$14:$C$1000,Veic!C15,Manut!$F$14:$F$1000) -> 400 | O15: =COUNTIF(Frete!$C$14:$C$1000,Veic!C15) -> 2 | P15: =SUMIF(Frete!$C$14:$C$1000,Veic!C15,Frete!$I$14:$I$1000) -> 9,000 | Q15: =SUMIF(Frete!$C$14:$C$1000,Veic!C15,Frete!$M$14:$M$1000) -> 1,600 | R15: =SUMIF(Frete!$C$14:$C$1000,Veic!C15,Frete!$H$14:$H$1000) -> 8,000 | S15: =P15-Q15 -> 7,400
B16: 3 | J16: =COUNTIFS(Manut!$D$14:$D$1000,Veic!J$13,Manut!$C$14:$C$1000,Veic!$C16) -> 0 | K16: =COUNTIFS(Manut!$D$14:$D$1000,Veic!K$13,Manut!$C$14:$C$1000,Veic!$C16) -> 0 | M16: =SUMIF(Manut!$C$14:$C$1000,Veic!C16,Manut!$F$14:$F$1000) -> 0 | O16: =COUNTIF(Frete!$C$14:$C$1000,Veic!C16) -> 0 | P16: =SUMIF(Frete!$C$14:$C$1000,Veic!C16,Frete!$I$14:$I$1000) -> 0 | Q16: =SUMIF(Frete!$C$14:$C$1000,Veic!C16,Frete!$M$14:$M$1000) -> 0 | R16: =SUMIF(Frete!$C$14:$C$1000,Veic!C16,Frete!$H$14:$H$1000) -> 0 | S16: 0
B17: 4 | J17: =COUNTIFS(Manut!$D$14:$D$1000,Veic!J$13,Manut!$C$14:$C$1000,Veic!$C17) -> 0 | K17: =COUNTIFS(Manut!$D$14:$D$1000,Veic!K$13,Manut!$C$14:$C$1000,Veic!$C17) -> 0 | M17: =SUMIF(Manut!$C$14:$C$1000,Veic!C17,Manut!$F$14:$F$1000) -> 0 | O17: =COUNTIF(Frete!$C$14:$C$1000,Veic!C17) -> 0 | P17: =SUMIF(Frete!$C$14:$C$1000,Veic!C17,Frete!$I$14:$I$1000) -> 0 | Q17: =SUMIF(Frete!$C$14:$C$1000,Veic!C17,Frete!$M$14:$M$1000) -> 0 | R17: =SUMIF(Frete!$C$14:$C$1000,Veic!C17,Frete!$H$14:$H$1000) -> 0 | S17: 0
B18: 5 | J18: =COUNTIFS(Manut!$D$14:$D$1000,Veic!J$13,Manut!$C$14:$C$1000,Veic!$C18) -> 0 | K18: =COUNTIFS(Manut!$D$14:$D$1000,Veic!K$13,Manut!$C$14:$C$1000,Veic!$C18) -> 0 | M18: =SUMIF(Manut!$C$14:$C$1000,Veic!C18,Manut!$F$14:$F$1000) -> 0 | O18: =COUNTIF(Frete!$C$14:$C$1000,Veic!C18) -> 0 | P18: =SUMIF(Frete!$C$14:$C$1000,Veic!C18,Frete!$I$14:$I$1000) -> 0 | Q18: =SUMIF(Frete!$C$14:$C$1000,Veic!C18,Frete!$M$14:$M$1000) -> 0 | R18: =SUMIF(Frete!$C$14:$C$1000,Veic!C18,Frete!$H$14:$H$1000) -> 0 | S18: 0
B19: 6 | J19: =COUNTIFS(Manut!$D$14:$D$1000,Veic!J$13,Manut!$C$14:$C$1000,Veic!$C19) -> 0 | K19: =COUNTIFS(Manut!$D$14:$D$1000,Veic!K$13,Manut!$C$14:$C$1000,Veic!$C19) -> 0 | M19: =SUMIF(Manut!$C$14:$C$1000,Veic!C19,Manut!$F$14:$F$1000) -> 0 | O19: =COUNTIF(Frete!$C$14:$C$1000,Veic!C19) -> 0 | P19: =SUMIF(Frete!$C$14:$C$1000,Veic!C19,Frete!$I$14:$I$1000) -> 0 | Q19: =SUMIF(Frete!$C$14:$C$1000,Veic!C19,Frete!$M$14:$M$1000) -> 0 | R19: =SUMIF(Frete!$C$14:$C$1000,Veic!C19,Frete!$H$14:$H$1000) -> 0 | S19: 0
B20: 7 | J20: =COUNTIFS(Manut!$D$14:$D$1000,Veic!J$13,Manut!$C$14:$C$1000,Veic!$C20) -> 0 | K20: =COUNTIFS(Manut!$D$14:$D$1000,Veic!K$13,Manut!$C$14:$C$1000,Veic!$C20) -> 0 | M20: =SUMIF(Manut!$C$14:$C$1000,Veic!C20,Manut!$F$14:$F$1000) -> 0 | O20: =COUNTIF(Frete!$C$14:$C$1000,Veic!C20) -> 0 | P20: =SUMIF(Frete!$C$14:$C$1000,Veic!C20,Frete!$I$14:$I$1000) -> 0 | Q20: =SUMIF(Frete!$C$14:$C$1000,Veic!C20,Frete!$M$14:$M$1000) -> 0 | R20: =SUMIF(Frete!$C$14:$C$1000,Veic!C20,Frete!$H$14:$H$1000) -> 0 | S20: 0
B21: 8 | J21: =COUNTIFS(Manut!$D$14:$D$1000,Veic!J$13,Manut!$C$14:$C$1000,Veic!$C21) -> 0 | K21: =COUNTIFS(Manut!$D$14:$D$1000,Veic!K$13,Manut!$C$14:$C$1000,Veic!$C21) -> 0 | M21: =SUMIF(Manut!$C$14:$C$1000,Veic!C21,Manut!$F$14:$F$1000) -> 0 | O21: =COUNTIF(Frete!$C$14:$C$1000,Veic!C21) -> 0 | P21: =SUMIF(Frete!$C$14:$C$1000,Veic!C21,Frete!$I$14:$I$1000) -> 0 | Q21: =SUMIF(Frete!$C$14:$C$1000,Veic!C21,Frete!$M$14:$M$1000) -> 0 | R21: =SUMIF(Frete!$C$14:$C$1000,Veic!C21,Frete!$H$14:$H$1000) -> 0 | S21: 0
B22: 9 | J22: =COUNTIFS(Manut!$D$14:$D$1000,Veic!J$13,Manut!$C$14:$C$1000,Veic!$C22) -> 0 | K22: =COUNTIFS(Manut!$D$14:$D$1000,Veic!K$13,Manut!$C$14:$C$1000,Veic!$C22) -> 0 | M22: =SUMIF(Manut!$C$14:$C$1000,Veic!C22,Manut!$F$14:$F$1000) -> 0 | O22: =COUNTIF(Frete!$C$14:$C$1000,Veic!C22) -> 0 | P22: =SUMIF(Frete!$C$14:$C$1000,Veic!C22,Frete!$I$14:$I$1000) -> 0 | Q22: =SUMIF(Frete!$C$14:$C$1000,Veic!C22,Frete!$M$14:$M$1000) -> 0 | R22: =SUMIF(Frete!$C$14:$C$1000,Veic!C22,Frete!$H$14:$H$1000) -> 0 | S22: 0
B23: 10 | J23: =COUNTIFS(Manut!$D$14:$D$1000,Veic!J$13,Manut!$C$14:$C$1000,Veic!$C23) -> 0 | K23: =COUNTIFS(Manut!$D$14:$D$1000,Veic!K$13,Manut!$C$14:$C$1000,Veic!$C23) -> 0 | M23: =SUMIF(Manut!$C$14:$C$1000,Veic!C23,Manut!$F$14:$F$1000) -> 0 | O23: =COUNTIF(Frete!$C$14:$C$1000,Veic!C23) -> 0 | P23: =SUMIF(Frete!$C$14:$C$1000,Veic!C23,Frete!$I$14:$I$1000) -> 0 | Q23: =SUMIF(Frete!$C$14:$C$1000,Veic!C23,Frete!$M$14:$M$1000) -> 0 | R23: =SUMIF(Frete!$C$14:$C$1000,Veic!C23,Frete!$H$14:$H$1000) -> 0 | S23: 0
B24: 11 | J24: =COUNTIFS(Manut!$D$14:$D$1000,Veic!J$13,Manut!$C$14:$C$1000,Veic!$C24) -> 0 | K24: =COUNTIFS(Manut!$D$14:$D$1000,Veic!K$13,Manut!$C$14:$C$1000,Veic!$C24) -> 0 | M24: =SUMIF(Manut!$C$14:$C$1000,Veic!C24,Manut!$F$14:$F$1000) -> 0 | O24: =COUNTIF(Frete!$C$14:$C$1000,Veic!C24) -> 0 | P24: =SUMIF(Frete!$C$14:$C$1000,Veic!C24,Frete!$I$14:$I$1000) -> 0 | Q24: =SUMIF(Frete!$C$14:$C$1000,Veic!C24,Frete!$M$14:$M$1000) -> 0 | R24: =SUMIF(Frete!$C$14:$C$1000,Veic!C24,Frete!$H$14:$H$1000) -> 0 | S24: 0
B25: 12 | J25: =COUNTIFS(Manut!$D$14:$D$1000,Veic!J$13,Manut!$C$14:$C$1000,Veic!$C25) -> 0 | K25: =COUNTIFS(Manut!$D$14:$D$1000,Veic!K$13,Manut!$C$14:$C$1000,Veic!$C25) -> 0 | M25: =SUMIF(Manut!$C$14:$C$1000,Veic!C25,Manut!$F$14:$F$1000) -> 0 | O25: =COUNTIF(Frete!$C$14:$C$1000,Veic!C25) -> 0 | P25: =SUMIF(Frete!$C$14:$C$1000,Veic!C25,Frete!$I$14:$I$1000) -> 0 | Q25: =SUMIF(Frete!$C$14:$C$1000,Veic!C25,Frete!$M$14:$M$1000) -> 0 | R25: =SUMIF(Frete!$C$14:$C$1000,Veic!C25,Frete!$H$14:$H$1000) -> 0 | S25: 0
B26: 13 | J26: =COUNTIFS(Manut!$D$14:$D$1000,Veic!J$13,Manut!$C$14:$C$1000,Veic!$C26) -> 0 | K26: =COUNTIFS(Manut!$D$14:$D$1000,Veic!K$13,Manut!$C$14:$C$1000,Veic!$C26) -> 0 | M26: =SUMIF(Manut!$C$14:$C$1000,Veic!C26,Manut!$F$14:$F$1000) -> 0 | O26: =COUNTIF(Frete!$C$14:$C$1000,Veic!C26) -> 0 | P26: =SUMIF(Frete!$C$14:$C$1000,Veic!C26,Frete!$I$14:$I$1000) -> 0 | Q26: =SUMIF(Frete!$C$14:$C$1000,Veic!C26,Frete!$M$14:$M$1000) -> 0 | R26: =SUMIF(Frete!$C$14:$C$1000,Veic!C26,Frete!$H$14:$H$1000) -> 0 | S26: 0
B27: 14 | J27: =COUNTIFS(Manut!$D$14:$D$1000,Veic!J$13,Manut!$C$14:$C$1000,Veic!$C27) -> 0 | K27: =COUNTIFS(Manut!$D$14:$D$1000,Veic!K$13,Manut!$C$14:$C$1000,Veic!$C27) -> 0 | M27: =SUMIF(Manut!$C$14:$C$1000,Veic!C27,Manut!$F$14:$F$1000) -> 0 | O27: =COUNTIF(Frete!$C$14:$C$1000,Veic!C27) -> 0 | P27: =SUMIF(Frete!$C$14:$C$1000,Veic!C27,Frete!$I$14:$I$1000) -> 0 | Q27: =SUMIF(Frete!$C$14:$C$1000,Veic!C27,Frete!$M$14:$M$1000) -> 0 | R27: =SUMIF(Frete!$C$14:$C$1000,Veic!C27,Frete!$H$14:$H$1000) -> 0 | S27: 0
B28: 15 | J28: =COUNTIFS(Manut!$D$14:$D$1000,Veic!J$13,Manut!$C$14:$C$1000,Veic!$C28) -> 0 | K28: =COUNTIFS(Manut!$D$14:$D$1000,Veic!K$13,Manut!$C$14:$C$1000,Veic!$C28) -> 0 | M28: =SUMIF(Manut!$C$14:$C$1000,Veic!C28,Manut!$F$14:$F$1000) -> 0 | O28: =COUNTIF(Frete!$C$14:$C$1000,Veic!C28) -> 0 | P28: =SUMIF(Frete!$C$14:$C$1000,Veic!C28,Frete!$I$14:$I$1000) -> 0 | Q28: =SUMIF(Frete!$C$14:$C$1000,Veic!C28,Frete!$M$14:$M$1000) -> 0 | R28: =SUMIF(Frete!$C$14:$C$1000,Veic!C28,Frete!$H$14:$H$1000) -> 0 | S28: 0
B29: 16 | J29: =COUNTIFS(Manut!$D$14:$D$1000,Veic!J$13,Manut!$C$14:$C$1000,Veic!$C29) -> 0 | K29: =COUNTIFS(Manut!$D$14:$D$1000,Veic!K$13,Manut!$C$14:$C$1000,Veic!$C29) -> 0 | M29: =SUMIF(Manut!$C$14:$C$1000,Veic!C29,Manut!$F$14:$F$1000) -> 0 | O29: =COUNTIF(Frete!$C$14:$C$1000,Veic!C29) -> 0 | P29: =SUMIF(Frete!$C$14:$C$1000,Veic!C29,Frete!$I$14:$I$1000) -> 0 | Q29: =SUMIF(Frete!$C$14:$C$1000,Veic!C29,Frete!$M$14:$M$1000) -> 0 | R29: =SUMIF(Frete!$C$14:$C$1000,Veic!C29,Frete!$H$14:$H$1000) -> 0 | S29: 0
B30: 17 | J30: =COUNTIFS(Manut!$D$14:$D$1000,Veic!J$13,Manut!$C$14:$C$1000,Veic!$C30) -> 0 | K30: =COUNTIFS(Manut!$D$14:$D$1000,Veic!K$13,Manut!$C$14:$C$1000,Veic!$C30) -> 0 | M30: =SUMIF(Manut!$C$14:$C$1000,Veic!C30,Manut!$F$14:$F$1000) -> 0 | O30: =COUNTIF(Frete!$C$14:$C$1000,Veic!C30) -> 0 | P30: =SUMIF(Frete!$C$14:$C$1000,Veic!C30,Frete!$I$14:$I$1000) -> 0 | Q30: =SUMIF(Frete!$C$14:$C$1000,Veic!C30,Frete!$M$14:$M$1000) -> 0 | R30: =SUMIF(Frete!$C$14:$C$1000,Veic!C30,Frete!$H$14:$H$1000) -> 0 | S30: 0
B31: 18 | J31: =COUNTIFS(Manut!$D$14:$D$1000,Veic!J$13,Manut!$C$14:$C$1000,Veic!$C31) -> 0 | K31: =COUNTIFS(Manut!$D$14:$D$1000,Veic!K$13,Manut!$C$14:$C$1000,Veic!$C31) -> 0 | M31: =SUMIF(Manut!$C$14:$C$1000,Veic!C31,Manut!$F$14:$F$1000) -> 0 | O31: =COUNTIF(Frete!$C$14:$C$1000,Veic!C31) -> 0 | P31: =SUMIF(Frete!$C$14:$C$1000,Veic!C31,Frete!$I$14:$I$1000) -> 0 | Q31: =SUMIF(Frete!$C$14:$C$1000,Veic!C31,Frete!$M$14:$M$1000) -> 0 | R31: =SUMIF(Frete!$C$14:$C$1000,Veic!C31,Frete!$H$14:$H$1000) -> 0 | S31: 0
B32: 19 | J32: =COUNTIFS(Manut!$D$14:$D$1000,Veic!J$13,Manut!$C$14:$C$1000,Veic!$C32) -> 0 | K32: =COUNTIFS(Manut!$D$14:$D$1000,Veic!K$13,Manut!$C$14:$C$1000,Veic!$C32) -> 0 | M32: =SUMIF(Manut!$C$14:$C$1000,Veic!C32,Manut!$F$14:$F$1000) -> 0 | O32: =COUNTIF(Frete!$C$14:$C$1000,Veic!C32) -> 0 | P32: =SUMIF(Frete!$C$14:$C$1000,Veic!C32,Frete!$I$14:$I$1000) -> 0 | Q32: =SUMIF(Frete!$C$14:$C$1000,Veic!C32,Frete!$M$14:$M$1000) -> 0 | R32: =SUMIF(Frete!$C$14:$C$1000,Veic!C32,Frete!$H$14:$H$1000) -> 0 | S32: 0
B33: 20 | J33: =COUNTIFS(Manut!$D$14:$D$1000,Veic!J$13,Manut!$C$14:$C$1000,Veic!$C33) -> 0 | K33: =COUNTIFS(Manut!$D$14:$D$1000,Veic!K$13,Manut!$C$14:$C$1000,Veic!$C33) -> 0 | M33: =SUMIF(Manut!$C$14:$C$1000,Veic!C33,Manut!$F$14:$F$1000) -> 0 | O33: =COUNTIF(Frete!$C$14:$C$1000,Veic!C33) -> 0 | P33: =SUMIF(Frete!$C$14:$C$1000,Veic!C33,Frete!$I$14:$I$1000) -> 0 | Q33: =SUMIF(Frete!$C$14:$C$1000,Veic!C33,Frete!$M$14:$M$1000) -> 0 | R33: =SUMIF(Frete!$C$14:$C$1000,Veic!C33,Frete!$H$14:$H$1000) -> 0 | S33: 0
B34: 21 | J34: =COUNTIFS(Manut!$D$14:$D$1000,Veic!J$13,Manut!$C$14:$C$1000,Veic!$C34) -> 0 | K34: =COUNTIFS(Manut!$D$14:$D$1000,Veic!K$13,Manut!$C$14:$C$1000,Veic!$C34) -> 0 | M34: =SUMIF(Manut!$C$14:$C$1000,Veic!C34,Manut!$F$14:$F$1000) -> 0 | O34: =COUNTIF(Frete!$C$14:$C$1000,Veic!C34) -> 0 | P34: =SUMIF(Frete!$C$14:$C$1000,Veic!C34,Frete!$I$14:$I$1000) -> 0 | Q34: =SUMIF(Frete!$C$14:$C$1000,Veic!C34,Frete!$M$14:$M$1000) -> 0 | R34: =SUMIF(Frete!$C$14:$C$1000,Veic!C34,Frete!$H$14:$H$1000) -> 0 | S34: 0
B35: 22 | J35: =COUNTIFS(Manut!$D$14:$D$1000,Veic!J$13,Manut!$C$14:$C$1000,Veic!$C35) -> 0 | K35: =COUNTIFS(Manut!$D$14:$D$1000,Veic!K$13,Manut!$C$14:$C$1000,Veic!$C35) -> 0 | M35: =SUMIF(Manut!$C$14:$C$1000,Veic!C35,Manut!$F$14:$F$1000) -> 0 | O35: =COUNTIF(Frete!$C$14:$C$1000,Veic!C35) -> 0 | P35: =SUMIF(Frete!$C$14:$C$1000,Veic!C35,Frete!$I$14:$I$1000) -> 0 | Q35: =SUMIF(Frete!$C$14:$C$1000,Veic!C35,Frete!$M$14:$M$1000) -> 0 | R35: =SUMIF(Frete!$C$14:$C$1000,Veic!C35,Frete!$H$14:$H$1000) -> 0 | S35: 0
B36: 23 | J36: =COUNTIFS(Manut!$D$14:$D$1000,Veic!J$13,Manut!$C$14:$C$1000,Veic!$C36) -> 0 | K36: =COUNTIFS(Manut!$D$14:$D$1000,Veic!K$13,Manut!$C$14:$C$1000,Veic!$C36) -> 0 | M36: =SUMIF(Manut!$C$14:$C$1000,Veic!C36,Manut!$F$14:$F$1000) -> 0 | O36: =COUNTIF(Frete!$C$14:$C$1000,Veic!C36) -> 0 | P36: =SUMIF(Frete!$C$14:$C$1000,Veic!C36,Frete!$I$14:$I$1000) -> 0 | Q36: =SUMIF(Frete!$C$14:$C$1000,Veic!C36,Frete!$M$14:$M$1000) -> 0 | R36: =SUMIF(Frete!$C$14:$C$1000,Veic!C36,Frete!$H$14:$H$1000) -> 0 | S36: 0
B37: 24 | J37: =COUNTIFS(Manut!$D$14:$D$1000,Veic!J$13,Manut!$C$14:$C$1000,Veic!$C37) -> 0 | K37: =COUNTIFS(Manut!$D$14:$D$1000,Veic!K$13,Manut!$C$14:$C$1000,Veic!$C37) -> 0 | M37: =SUMIF(Manut!$C$14:$C$1000,Veic!C37,Manut!$F$14:$F$1000) -> 0 | O37: =COUNTIF(Frete!$C$14:$C$1000,Veic!C37) -> 0 | P37: =SUMIF(Frete!$C$14:$C$1000,Veic!C37,Frete!$I$14:$I$1000) -> 0 | Q37: =SUMIF(Frete!$C$14:$C$1000,Veic!C37,Frete!$M$14:$M$1000) -> 0 | R37: =SUMIF(Frete!$C$14:$C$1000,Veic!C37,Frete!$H$14:$H$1000) -> 0 | S37: 0
B38: 25 | J38: =COUNTIFS(Manut!$D$14:$D$1000,Veic!J$13,Manut!$C$14:$C$1000,Veic!$C38) -> 0 | K38: =COUNTIFS(Manut!$D$14:$D$1000,Veic!K$13,Manut!$C$14:$C$1000,Veic!$C38) -> 0 | M38: =SUMIF(Manut!$C$14:$C$1000,Veic!C38,Manut!$F$14:$F$1000) -> 0 | O38: =COUNTIF(Frete!$C$14:$C$1000,Veic!C38) -> 0 | P38: =SUMIF(Frete!$C$14:$C$1000,Veic!C38,Frete!$I$14:$I$1000) -> 0 | Q38: =SUMIF(Frete!$C$14:$C$1000,Veic!C38,Frete!$M$14:$M$1000) -> 0 | R38: =SUMIF(Frete!$C$14:$C$1000,Veic!C38,Frete!$H$14:$H$1000) -> 0 | S38: 0
B39: 26 | J39: =COUNTIFS(Manut!$D$14:$D$1000,Veic!J$13,Manut!$C$14:$C$1000,Veic!$C39) -> 0 | K39: =COUNTIFS(Manut!$D$14:$D$1000,Veic!K$13,Manut!$C$14:$C$1000,Veic!$C39) -> 0 | M39: =SUMIF(Manut!$C$14:$C$1000,Veic!C39,Manut!$F$14:$F$1000) -> 0 | O39: =COUNTIF(Frete!$C$14:$C$1000,Veic!C39) -> 0 | P39: =SUMIF(Frete!$C$14:$C$1000,Veic!C39,Frete!$I$14:$I$1000) -> 0 | Q39: =SUMIF(Frete!$C$14:$C$1000,Veic!C39,Frete!$M$14:$M$1000) -> 0 | R39: =SUMIF(Frete!$C$14:$C$1000,Veic!C39,Frete!$H$14:$H$1000) -> 0 | S39: 0
B40: 27 | J40: =COUNTIFS(Manut!$D$14:$D$1000,Veic!J$13,Manut!$C$14:$C$1000,Veic!$C40) -> 0 | K40: =COUNTIFS(Manut!$D$14:$D$1000,Veic!K$13,Manut!$C$14:$C$1000,Veic!$C40) -> 0 | M40: =SUMIF(Manut!$C$14:$C$1000,Veic!C40,Manut!$F$14:$F$1000) -> 0 | O40: =COUNTIF(Frete!$C$14:$C$1000,Veic!C40) -> 0 | P40: =SUMIF(Frete!$C$14:$C$1000,Veic!C40,Frete!$I$14:$I$1000) -> 0 | Q40: =SUMIF(Frete!$C$14:$C$1000,Veic!C40,Frete!$M$14:$M$1000) -> 0 | R40: =SUMIF(Frete!$C$14:$C$1000,Veic!C40,Frete!$H$14:$H$1000) -> 0 | S40: 0
B41: 28 | J41: =COUNTIFS(Manut!$D$14:$D$1000,Veic!J$13,Manut!$C$14:$C$1000,Veic!$C41) -> 0 | K41: =COUNTIFS(Manut!$D$14:$D$1000,Veic!K$13,Manut!$C$14:$C$1000,Veic!$C41) -> 0 | M41: =SUMIF(Manut!$C$14:$C$1000,Veic!C41,Manut!$F$14:$F$1000) -> 0 | O41: =COUNTIF(Frete!$C$14:$C$1000,Veic!C41) -> 0 | P41: =SUMIF(Frete!$C$14:$C$1000,Veic!C41,Frete!$I$14:$I$1000) -> 0 | Q41: =SUMIF(Frete!$C$14:$C$1000,Veic!C41,Frete!$M$14:$M$1000) -> 0 | R41: =SUMIF(Frete!$C$14:$C$1000,Veic!C41,Frete!$H$14:$H$1000) -> 0 | S41: 0
B42: 29 | J42: =COUNTIFS(Manut!$D$14:$D$1000,Veic!J$13,Manut!$C$14:$C$1000,Veic!$C42) -> 0 | K42: =COUNTIFS(Manut!$D$14:$D$1000,Veic!K$13,Manut!$C$14:$C$1000,Veic!$C42) -> 0 | M42: =SUMIF(Manut!$C$14:$C$1000,Veic!C42,Manut!$F$14:$F$1000) -> 0 | O42: =COUNTIF(Frete!$C$14:$C$1000,Veic!C42) -> 0 | P42: =SUMIF(Frete!$C$14:$C$1000,Veic!C42,Frete!$I$14:$I$1000) -> 0 | Q42: =SUMIF(Frete!$C$14:$C$1000,Veic!C42,Frete!$M$14:$M$1000) -> 0 | R42: =SUMIF(Frete!$C$14:$C$1000,Veic!C42,Frete!$H$14:$H$1000) -> 0 | S42: 0
B43: 30 | J43: =COUNTIFS(Manut!$D$14:$D$1000,Veic!J$13,Manut!$C$14:$C$1000,Veic!$C43) -> 0 | K43: =COUNTIFS(Manut!$D$14:$D$1000,Veic!K$13,Manut!$C$14:$C$1000,Veic!$C43) -> 0 | M43: =SUMIF(Manut!$C$14:$C$1000,Veic!C43,Manut!$F$14:$F$1000) -> 0 | O43: =COUNTIF(Frete!$C$14:$C$1000,Veic!C43) -> 0 | P43: =SUMIF(Frete!$C$14:$C$1000,Veic!C43,Frete!$I$14:$I$1000) -> 0 | Q43: =SUMIF(Frete!$C$14:$C$1000,Veic!C43,Frete!$M$14:$M$1000) -> 0 | R43: =SUMIF(Frete!$C$14:$C$1000,Veic!C43,Frete!$H$14:$H$1000) -> 0 | S43: 0

Sheet Mot
B10: Empresa: | C10: =Menu!G26 -> Empresa ABCDE
B12: CADASTROS DE MOTORISTAS Insira os dados dos motoristas. | M12: =COUNTIF($H$14:$H$43,M$13) -> 2 | N12: =COUNTIF($H$14:$H$43,N$13) -> 1 | O12: =COUNTIF($H$14:$H$43,O$13) -> 0 | Q12: =SUM(Q14:Q43) -> 5 | R12: =SUM(R14:R43) -> 13,950 | S12: =SUM(S14:S43) -> 40,500 | T12: =SUM(T14:T43) -> 4,400 | U12: =SUM(U14:U43) -> 36,100
B13: ITEM | C13: MOTORISTA | D13: TELEFONE | E13: TIPO DE CNH | F13: CNH | G13: VENCIMENTO CNH | H13: STATUS CNH | M13: CNH VENCIDA | N13: CNH OK | O13: CNH VENCENDO | Q13: Fretes | R13: KM Rodado | S13: ReceitasFretes | T13: DespesasFrete | U13: Saldo
B14: 1 | C14: JOSÉ DA SILVA | D14: 9999-9999 | E14: D | F14: 123456789 | G14: 2022-10-27 | H14: =IF(G14="","",IF(G14<TODAY(),"CNH VENCIDA",IF(G14-TODAY()<30,"CNH VENCENDO","CNH OK"))) -> CNH VENCIDA | Q14: =COUNTIF(Frete!$D$14:$D$1000,C14) -> 3 | R14: =SUMIF(Frete!$D$14:$D$1000,C14,Frete!$H$14:$H$1000) -> 5,950 | S14: =SUMIF(Frete!$D$14:$D$1000,C14,Frete!$I$14:$I$1000) -> 31,500 | T14: =SUMIF(Frete!$D$14:$D$1000,C14,Frete!$M$14:$M$1000) -> 2,800 | U14: =S14-T14 -> 28,700
B15: 2 | C15: JOÃO PAULO ALVES | D15: 8888-8888 | E15: D | F15: 222222222 | G15: 2023-08-15 | H15: =IF(G15="","",IF(G15<TODAY(),"CNH VENCIDA",IF(G15-TODAY()<30,"CNH VENCENDO","CNH OK"))) -> CNH VENCIDA | Q15: =COUNTIF(Frete!$D$14:$D$1000,C15) -> 2 | R15: =SUMIF(Frete!$D$14:$D$1000,C15,Frete!$H$14:$H$1000) -> 8,000 | S15: =SUMIF(Frete!$D$14:$D$1000,C15,Frete!$I$14:$I$1000) -> 9,000 | T15: =SUMIF(Frete!$D$14:$D$1000,C15,Frete!$M$14:$M$1000) -> 1,600 | U15: =S15-T15 -> 7,400
B16: 3 | C16: PEDRO HENRIQUE | D16: 7777-7777 | E16: AB | F16: 5555555 | G16: 2024-11-15 | H16: CNH OK | Q16: =COUNTIF(Frete!$D$14:$D$1000,C16) -> 0 | R16: =SUMIF(Frete!$D$14:$D$1000,C16,Frete!$H$14:$H$1000) -> 0 | S16: =SUMIF(Frete!$D$14:$D$1000,C16,Frete!$I$14:$I$1000) -> 0 | T16: =SUMIF(Frete!$D$14:$D$1000,C16,Frete!$M$14:$M$1000) -> 0 | U16: 0
B17: 4 | Q17: =COUNTIF(Frete!$D$14:$D$1000,C17) -> 0 | R17: =SUMIF(Frete!$D$14:$D$1000,C17,Frete!$H$14:$H$1000) -> 0 | S17: =SUMIF(Frete!$D$14:$D$1000,C17,Frete!$I$14:$I$1000) -> 0 | T17: =SUMIF(Frete!$D$14:$D$1000,C17,Frete!$M$14:$M$1000) -> 0 | U17: 0
B18: 5 | Q18: =COUNTIF(Frete!$D$14:$D$1000,C18) -> 0 | R18: =SUMIF(Frete!$D$14:$D$1000,C18,Frete!$H$14:$H$1000) -> 0 | S18: =SUMIF(Frete!$D$14:$D$1000,C18,Frete!$I$14:$I$1000) -> 0 | T18: =SUMIF(Frete!$D$14:$D$1000,C18,Frete!$M$14:$M$1000) -> 0 | U18: 0
B19: 6 | Q19: =COUNTIF(Frete!$D$14:$D$1000,C19) -> 0 | R19: =SUMIF(Frete!$D$14:$D$1000,C19,Frete!$H$14:$H$1000) -> 0 | S19: =SUMIF(Frete!$D$14:$D$1000,C19,Frete!$I$14:$I$1000) -> 0 | T19: =SUMIF(Frete!$D$14:$D$1000,C19,Frete!$M$14:$M$1000) -> 0 | U19: 0
B20: 7 | Q20: =COUNTIF(Frete!$D$14:$D$1000,C20) -> 0 | R20: =SUMIF(Frete!$D$14:$D$1000,C20,Frete!$H$14:$H$1000) -> 0 | S20: =SUMIF(Frete!$D$14:$D$1000,C20,Frete!$I$14:$I$1000) -> 0 | T20: =SUMIF(Frete!$D$14:$D$1000,C20,Frete!$M$14:$M$1000) -> 0 | U20: 0
B21: 8 | Q21: =COUNTIF(Frete!$D$14:$D$1000,C21) -> 0 | R21: =SUMIF(Frete!$D$14:$D$1000,C21,Frete!$H$14:$H$1000) -> 0 | S21: =SUMIF(Frete!$D$14:$D$1000,C21,Frete!$I$14:$I$1000) -> 0 | T21: =SUMIF(Frete!$D$14:$D$1000,C21,Frete!$M$14:$M$1000) -> 0 | U21: 0
B22: 9 | Q22: =COUNTIF(Frete!$D$14:$D$1000,C22) -> 0 | R22: =SUMIF(Frete!$D$14:$D$1000,C22,Frete!$H$14:$H$1000) -> 0 | S22: =SUMIF(Frete!$D$14:$D$1000,C22,Frete!$I$14:$I$1000) -> 0 | T22: =SUMIF(Frete!$D$14:$D$1000,C22,Frete!$M$14:$M$1000) -> 0 | U22: 0
B23: 10 | Q23: =COUNTIF(Frete!$D$14:$D$1000,C23) -> 0 | R23: =SUMIF(Frete!$D$14:$D$1000,C23,Frete!$H$14:$H$1000) -> 0 | S23: =SUMIF(Frete!$D$14:$D$1000,C23,Frete!$I$14:$I$1000) -> 0 | T23: =SUMIF(Frete!$D$14:$D$1000,C23,Frete!$M$14:$M$1000) -> 0 | U23: 0
B24: 11 | Q24: =COUNTIF(Frete!$D$14:$D$1000,C24) -> 0 | R24: =SUMIF(Frete!$D$14:$D$1000,C24,Frete!$H$14:$H$1000) -> 0 | S24: =SUMIF(Frete!$D$14:$D$1000,C24,Frete!$I$14:$I$1000) -> 0 | T24: =SUMIF(Frete!$D$14:$D$1000,C24,Frete!$M$14:$M$1000) -> 0 | U24: 0
B25: 12 | Q25: =COUNTIF(Frete!$D$14:$D$1000,C25) -> 0 | R25: =SUMIF(Frete!$D$14:$D$1000,C25,Frete!$H$14:$H$1000) -> 0 | S25: =SUMIF(Frete!$D$14:$D$1000,C25,Frete!$I$14:$I$1000) -> 0 | T25: =SUMIF(Frete!$D$14:$D$1000,C25,Frete!$M$14:$M$1000) -> 0 | U25: 0
B26: 13 | Q26: =COUNTIF(Frete!$D$14:$D$1000,C26) -> 0 | R26: =SUMIF(Frete!$D$14:$D$1000,C26,Frete!$H$14:$H$1000) -> 0 | S26: =SUMIF(Frete!$D$14:$D$1000,C26,Frete!$I$14:$I$1000) -> 0 | T26: =SUMIF(Frete!$D$14:$D$1000,C26,Frete!$M$14:$M$1000) -> 0 | U26: 0
B27: 14 | Q27: =COUNTIF(Frete!$D$14:$D$1000,C27) -> 0 | R27: =SUMIF(Frete!$D$14:$D$1000,C27,Frete!$H$14:$H$1000) -> 0 | S27: =SUMIF(Frete!$D$14:$D$1000,C27,Frete!$I$14:$I$1000) -> 0 | T27: =SUMIF(Frete!$D$14:$D$1000,C27,Frete!$M$14:$M$1000) -> 0 | U27: 0
B28: 15 | Q28: =COUNTIF(Frete!$D$14:$D$1000,C28) -> 0 | R28: =SUMIF(Frete!$D$14:$D$1000,C28,Frete!$H$14:$H$1000) -> 0 | S28: =SUMIF(Frete!$D$14:$D$1000,C28,Frete!$I$14:$I$1000) -> 0 | T28: =SUMIF(Frete!$D$14:$D$1000,C28,Frete!$M$14:$M$1000) -> 0 | U28: 0
B29: 16 | Q29: =COUNTIF(Frete!$D$14:$D$1000,C29) -> 0 | R29: =SUMIF(Frete!$D$14:$D$1000,C29,Frete!$H$14:$H$1000) -> 0 | S29: =SUMIF(Frete!$D$14:$D$1000,C29,Frete!$I$14:$I$1000) -> 0 | T29: =SUMIF(Frete!$D$14:$D$1000,C29,Frete!$M$14:$M$1000) -> 0 | U29: 0
B30: 17 | Q30: =COUNTIF(Frete!$D$14:$D$1000,C30) -> 0 | R30: =SUMIF(Frete!$D$14:$D$1000,C30,Frete!$H$14:$H$1000) -> 0 | S30: =SUMIF(Frete!$D$14:$D$1000,C30,Frete!$I$14:$I$1000) -> 0 | T30: =SUMIF(Frete!$D$14:$D$1000,C30,Frete!$M$14:$M$1000) -> 0 | U30: 0
B31: 18 | Q31: =COUNTIF(Frete!$D$14:$D$1000,C31) -> 0 | R31: =SUMIF(Frete!$D$14:$D$1000,C31,Frete!$H$14:$H$1000) -> 0 | S31: =SUMIF(Frete!$D$14:$D$1000,C31,Frete!$I$14:$I$1000) -> 0 | T31: =SUMIF(Frete!$D$14:$D$1000,C31,Frete!$M$14:$M$1000) -> 0 | U31: 0
B32: 19 | Q32: =COUNTIF(Frete!$D$14:$D$1000,C32) -> 0 | R32: =SUMIF(Frete!$D$14:$D$1000,C32,Frete!$H$14:$H$1000) -> 0 | S32: =SUMIF(Frete!$D$14:$D$1000,C32,Frete!$I$14:$I$1000) -> 0 | T32: =SUMIF(Frete!$D$14:$D$1000,C32,Frete!$M$14:$M$1000) -> 0 | U32: 0
B33: 20 | Q33: =COUNTIF(Frete!$D$14:$D$1000,C33) -> 0 | R33: =SUMIF(Frete!$D$14:$D$1000,C33,Frete!$H$14:$H$1000) -> 0 | S33: =SUMIF(Frete!$D$14:$D$1000,C33,Frete!$I$14:$I$1000) -> 0 | T33: =SUMIF(Frete!$D$14:$D$1000,C33,Frete!$M$14:$M$1000) -> 0 | U33: 0
B34: 21 | Q34: =COUNTIF(Frete!$D$14:$D$1000,C34) -> 0 | R34: =SUMIF(Frete!$D$14:$D$1000,C34,Frete!$H$14:$H$1000) -> 0 | S34: =SUMIF(Frete!$D$14:$D$1000,C34,Frete!$I$14:$I$1000) -> 0 | T34: =SUMIF(Frete!$D$14:$D$1000,C34,Frete!$M$14:$M$1000) -> 0 | U34: 0
B35: 22 | Q35: =COUNTIF(Frete!$D$14:$D$1000,C35) -> 0 | R35: =SUMIF(Frete!$D$14:$D$1000,C35,Frete!$H$14:$H$1000) -> 0 | S35: =SUMIF(Frete!$D$14:$D$1000,C35,Frete!$I$14:$I$1000) -> 0 | T35: =SUMIF(Frete!$D$14:$D$1000,C35,Frete!$M$14:$M$1000) -> 0 | U35: 0
B36: 23 | Q36: =COUNTIF(Frete!$D$14:$D$1000,C36) -> 0 | R36: =SUMIF(Frete!$D$14:$D$1000,C36,Frete!$H$14:$H$1000) -> 0 | S36: =SUMIF(Frete!$D$14:$D$1000,C36,Frete!$I$14:$I$1000) -> 0 | T36: =SUMIF(Frete!$D$14:$D$1000,C36,Frete!$M$14:$M$1000) -> 0 | U36: 0
B37: 24 | Q37: =COUNTIF(Frete!$D$14:$D$1000,C37) -> 0 | R37: =SUMIF(Frete!$D$14:$D$1000,C37,Frete!$H$14:$H$1000) -> 0 | S37: =SUMIF(Frete!$D$14:$D$1000,C37,Frete!$I$14:$I$1000) -> 0 | T37: =SUMIF(Frete!$D$14:$D$1000,C37,Frete!$M$14:$M$1000) -> 0 | U37: 0
B38: 25 | Q38: =COUNTIF(Frete!$D$14:$D$1000,C38) -> 0 | R38: =SUMIF(Frete!$D$14:$D$1000,C38,Frete!$H$14:$H$1000) -> 0 | S38: =SUMIF(Frete!$D$14:$D$1000,C38,Frete!$I$14:$I$1000) -> 0 | T38: =SUMIF(Frete!$D$14:$D$1000,C38,Frete!$M$14:$M$1000) -> 0 | U38: 0
B39: 26 | Q39: =COUNTIF(Frete!$D$14:$D$1000,C39) -> 0 | R39: =SUMIF(Frete!$D$14:$D$1000,C39,Frete!$H$14:$H$1000) -> 0 | S39: =SUMIF(Frete!$D$14:$D$1000,C39,Frete!$I$14:$I$1000) -> 0 | T39: =SUMIF(Frete!$D$14:$D$1000,C39,Frete!$M$14:$M$1000) -> 0 | U39: 0
B40: 27 | Q40: =COUNTIF(Frete!$D$14:$D$1000,C40) -> 0 | R40: =SUMIF(Frete!$D$14:$D$1000,C40,Frete!$H$14:$H$1000) -> 0 | S40: =SUMIF(Frete!$D$14:$D$1000,C40,Frete!$I$14:$I$1000) -> 0 | T40: =SUMIF(Frete!$D$14:$D$1000,C40,Frete!$M$14:$M$1000) -> 0 | U40: 0
B41: 28 | Q41: =COUNTIF(Frete!$D$14:$D$1000,C41) -> 0 | R41: =SUMIF(Frete!$D$14:$D$1000,C41,Frete!$H$14:$H$1000) -> 0 | S41: =SUMIF(Frete!$D$14:$D$1000,C41,Frete!$I$14:$I$1000) -> 0 | T41: =SUMIF(Frete!$D$14:$D$1000,C41,Frete!$M$14:$M$1000) -> 0 | U41: 0
B42: 29 | Q42: =COUNTIF(Frete!$D$14:$D$1000,C42) -> 0 | R42: =SUMIF(Frete!$D$14:$D$1000,C42,Frete!$H$14:$H$1000) -> 0 | S42: =SUMIF(Frete!$D$14:$D$1000,C42,Frete!$I$14:$I$1000) -> 0 | T42: =SUMIF(Frete!$D$14:$D$1000,C42,Frete!$M$14:$M$1000) -> 0 | U42: 0
B43: 30 | Q43: =COUNTIF(Frete!$D$14:$D$1000,C43) -> 0 | R43: =SUMIF(Frete!$D$14:$D$1000,C43,Frete!$H$14:$H$1000) -> 0 | S43: =SUMIF(Frete!$D$14:$D$1000,C43,Frete!$I$14:$I$1000) -> 0 | T43: =SUMIF(Frete!$D$14:$D$1000,C43,Frete!$M$14:$M$1000) -> 0 | U43: 0

Sheet Manut
B10: Empresa: | C10: =Menu!G26 -> Empresa ABCDE
B12: LANÇAMENTO DE MANUTENÇÕES Insira os lançamentos das manutenções preventivas e corretivas realizadas.
B13: DATA | C13: VEÍCULO | D13: TIPO DE MANUTEÇÃO | E13: DESCRIÇÃO DA MANUTENÇÃO | F13: VALOR DA MANUTENÇÃO
B14: 2024-02-01 | C14: CAMINHÃO VW 180 | D14: Corretiva | E14: CONSERTO DA EMBREAGEM | F14: R$350.00
B15: 2024-03-01 | C15: CAMINHÃO VW 180 | D15: Corretiva | E15: CONSERTO DO MOTOR DE PARTIDA | F15: R$600.00
B16: 2024-04-01 | C16: CAMINHÃO VW 180 | D16: Preventiva | E16: TROCA DE ÓLEO | F16: R$1,000.00
B17: 2024-04-01 | C17: UNO FILE 1.0 | D17: Preventiva | E17: TROCA DE ÓLEO | F17: R$250.00
B18: 2024-05-01 | C18: UNO FILE 1.0 | D18: Corretiva | E18: CONSERTO DO SISTEMA DE ARREFACIMENTO | F18: R$150.00

Sheet Frete
B10: Empresa: | C10: =Menu!G26 -> Empresa ABCDE
B12: LANÇAMENTO DE FRETES Insira os lançamentos dos fretes realizados.
B13: DATA | C13: VEÍCULO | D13: MOTORISTA | E13: DESTINO | F13: KM IDA | G13: KM VOLTA | H13: KM RODADO | I13: VALOR FRETE | J13: DESPESAS COMBUSTÍVEL | K13: DESPESAS MULTAS | L13: OUTRAS DESPESAS | M13: TOTAL DESPESAS
B14: 2024-02-01 | C14: CAMINHÃO VW 180 | D14: JOSÉ DA SILVA | E14: SÃO PAULO | F14: 100,000 | G14: 102,000 | H14: =G14-F14 -> 2,000 | I14: R$10,000.00 | J14: R$500.00 | K14: 0 | L14: R$300.00 | M14: =SUM(J14:L14) -> R$800.00
B15: 2024-03-01 | C15: CAMINHÃO VW 180 | D15: JOSÉ DA SILVA | E15: SÃO PAULO | F15: 102,050 | G15: 104,000 | H15: =G15-F15 -> 1,950 | I15: R$12,000.00 | J15: R$800.00 | K15: 0 | L15: R$300.00 | M15: =SUM(J15:L15) -> R$1,100.00
B16: 2024-04-01 | C16: CAMINHÃO VW 180 | D16: JOSÉ DA SILVA | E16: SÃO PAULO | F16: 104,000 | G16: 106,000 | H16: 2,000 | I16: R$9,500.00 | J16: R$600.00 | K16: 0 | L16: R$300.00 | M16: R$900.00
B17: 2024-04-01 | C17: UNO FILE 1.0 | D17: JOÃO PAULO ALVES | E17: PERNAMBUCO | F17: 40,000 | G17: 44,000 | H17: 4,000 | I17: R$4,000.00 | J17: R$400.00 | K17: 0 | L17: R$300.00 | M17: R$700.00
B18: 2024-05-01 | C18: UNO FILE 1.0 | D18: JOÃO PAULO ALVES | E18: PERNAMBUCO | F18: 44,000 | G18: 48,000 | H18: 4,000 | I18: R$5,000.00 | J18: R$600.00 | K18: 0 | L18: R$300.00 | M18: R$900.00
H19: 0 | M19: 0
H20: 0 | M20: 0
H21: 0 | M21: 0
H22: 0 | M22: 0
H23: 0 | M23: 0
H24: 0 | M24: 0
H25: 0 | M25: 0
H26: 0 | M26: 0
H27: 0 | M27: 0
H28: 0 | M28: 0
H29: 0 | M29: 0
H30: 0 | M30: 0
H31: 0 | M31: 0
H32: 0 | M32: 0
H33: 0 | M33: 0
H34: 0 | M34: 0
H35: 0 | M35: 0
H36: 0 | M36: 0
H37: 0 | M37: 0
H38: 0 | M38: 0
H39: 0 | M39: 0
H40: 0 | M40: 0
H41: 0 | M41: 0
H42: 0 | M42: 0
H43: 0 | M43: 0
H44: =G44-F44 -> 0 | M44: =SUM(J44:L44) -> 0
H45: 0 | M45: 0
H46: 0 | M46: 0
H47: 0 | M47: 0
H48: 0 | M48: 0
H49: 0 | M49: 0
H50: 0 | M50: 0
H51: 0 | M51: 0
H52: 0 | M52: 0
H53: 0 | M53: 0
H54: 0 | M54: 0
H55: 0 | M55: 0
H56: 0 | M56: 0
H57: 0 | M57: 0
H58: 0 | M58: 0
H59: 0 | M59: 0
H60: 0 | M60: 0
H61: 0 | M61: 0
H62: 0 | M62: 0
H63: 0 | M63: 0
H64: 0 | M64: 0
H65: 0 | M65: 0
H66: 0 | M66: 0
H67: 0 | M67: 0
H68: 0 | M68: 0
H69: 0 | M69: 0
H70: 0 | M70: 0
H71: 0 | M71: 0
H72: 0 | M72: 0
H73: 0 | M73: 0
H74: 0 | M74: 0
H75: 0 | M75: 0
H76: 0 | M76: 0
H77: 0 | M77: 0
H78: 0 | M78: 0
H79: 0 | M79: 0
H80: 0 | M80: 0
H81: 0 | M81: 0
H82: 0 | M82: 0
H83: 0 | M83: 0
H84: 0 | M84: 0
H85: 0 | M85: 0
H86: 0 | M86: 0
H87: 0 | M87: 0
H88: 0 | M88: 0
H89: 0 | M89: 0
H90: 0 | M90: 0
H91: 0 | M91: 0
H92: 0 | M92: 0
H93: 0 | M93: 0
H94: 0 | M94: 0
H95: 0 | M95: 0
H96: 0 | M96: 0
H97: 0 | M97: 0
H98: 0 | M98: 0
H99: 0 | M99: 0
H100: 0 | M100: 0
H101: 0 | M101: 0
H102: 0 | M102: 0
H103: 0 | M103: 0
H104: 0 | M104: 0
H105: 0 | M105: 0
H106: 0 | M106: 0
H107: 0 | M107: 0
H108: =G108-F108 -> 0 | M108: =SUM(J108:L108) -> 0
H109: 0 | M109: 0
H110: 0 | M110: 0
H111: 0 | M111: 0
H112: 0 | M112: 0
H113: 0 | M113: 0
H114: 0 | M114: 0
H115: 0 | M115: 0
H116: 0 | M116: 0
H117: 0 | M117: 0
H118: 0 | M118: 0
H119: 0 | M119: 0
H120: 0 | M120: 0
H121: 0 | M121: 0
H122: 0 | M122: 0
H123: 0 | M123: 0
H124: 0 | M124: 0
H125: 0 | M125: 0
H126: 0 | M126: 0
H127: 0 | M127: 0
H128: 0 | M128: 0
H129: 0 | M129: 0
H130: 0 | M130: 0
H131: 0 | M131: 0
H132: 0 | M132: 0
H133: 0 | M133: 0
H134: 0 | M134: 0
H135: 0 | M135: 0
H136: 0 | M136: 0
H137: 0 | M137: 0
H138: 0 | M138: 0
H139: 0 | M139: 0
H140: 0 | M140: 0
H141: 0 | M141: 0
H142: 0 | M142: 0
H143: 0 | M143: 0
H144: 0 | M144: 0
H145: 0 | M145: 0
H146: 0 | M146: 0
H147: 0 | M147: 0
H148: 0 | M148: 0
H149: 0 | M149: 0
H150: 0 | M150: 0
H151: 0 | M151: 0
H152: 0 | M152: 0
H153: 0 | M153: 0
H154: 0 | M154: 0
H155: 0 | M155: 0
H156: 0 | M156: 0
H157: 0 | M157: 0
H158: 0 | M158: 0
H159: 0 | M159: 0
H160: 0 | M160: 0
H161: 0 | M161: 0
H162: 0 | M162: 0
H163: 0 | M163: 0
H164: 0 | M164: 0
H165: 0 | M165: 0
H166: 0 | M166: 0
H167: 0 | M167: 0
H168: 0 | M168: 0
H169: 0 | M169: 0
H170: 0 | M170: 0
H171: 0 | M171: 0
H172: =G172-F172 -> 0 | M172: =SUM(J172:L172) -> 0
H173: 0 | M173: 0
H174: 0 | M174: 0
H175: 0 | M175: 0
H176: 0 | M176: 0
H177: 0 | M177: 0
H178: 0 | M178: 0
H179: 0 | M179: 0
H180: 0 | M180: 0
H181: 0 | M181: 0
H182: 0 | M182: 0
H183: 0 | M183: 0
H184: 0 | M184: 0
H185: 0 | M185: 0
H186: 0 | M186: 0
H187: 0 | M187: 0
H188: 0 | M188: 0
H189: 0 | M189: 0
H190: 0 | M190: 0
H191: 0 | M191: 0
H192: 0 | M192: 0
H193: 0 | M193: 0
H194: 0 | M194: 0
H195: 0 | M195: 0
H196: 0 | M196: 0
H197: 0 | M197: 0
H198: 0 | M198: 0
H199: 0 | M199: 0
H200: 0 | M200: 0
H201: 0 | M201: 0
H202: 0 | M202: 0
H203: 0 | M203: 0
H204: 0 | M204: 0
H205: 0 | M205: 0
H206: 0 | M206: 0
H207: 0 | M207: 0
H208: 0 | M208: 0
H209: 0 | M209: 0
H210: 0 | M210: 0
... 790 more rows

Sheet Dash
B11: Empresa: | D11: =Menu!G26 -> Empresa ABCDE

Sheet Dash (2)
B11: Empresa: | D11: =Menu!G26 -> Empresa ABCDE
B14: Selecione o Veículo: | D14: CAMINHÃO VW 180
B16: Preventiva | C16: =IFERROR(VLOOKUP(D14,Veic!$C$14:$S$43,8,0),"") -> 1
B17: Corretiva | C17: =IFERROR(VLOOKUP(D14,Veic!$C$14:$S$43,9,0),"") -> 2
B19: DespesaManut | C19: =IFERROR(VLOOKUP(D14,Veic!$C$14:$S$43,11,0),"") -> R$1,950.00
B20: Fretes Realiz | C20: =IFERROR(VLOOKUP(D14,Veic!$C$14:$S$43,13,0),"") -> 3
B21: KM Rodado | C21: =IFERROR(VLOOKUP(D14,Veic!$C$14:$S$43,16,0),"") -> 5,950
B23: Receita | C23: =IFERROR(VLOOKUP(D14,Veic!$C$14:$S$43,14,0),"") -> R$31,500.00
B24: Despesa | C24: =IFERROR(VLOOKUP(D14,Veic!$C$14:$S$43,15,0),"") -> R$2,800.00
B25: Saldo | C25: =C23-C24 -> R$28,700.00

Sheet Dash (3)
B11: Empresa: | D11: =Menu!G26 -> Empresa ABCDE
B14: Selecione o Motorista: | D14: JOSÉ DA SILVA
B18: Status CNH | C18: =IFERROR(VLOOKUP(D14,Mot!$C$14:$U$43,6,0),"") -> CNH VENCIDA
B20: Fretes Realiz | C20: =IFERROR(VLOOKUP(D14,Mot!$C$14:$U$43,15,0),"") -> 3
B21: KM Rodado | C21: =IFERROR(VLOOKUP(D14,Mot!$C$14:$U$43,16,0),"") -> 5,950
B23: Receita | C23: =IFERROR(VLOOKUP(D14,Mot!$C$14:$U$43,17,0),"") -> R$31,500.00
B24: Despesa | C24: =IFERROR(VLOOKUP(D14,Mot!$C$14:$U$43,18,0),"") -> R$2,800.00
B25: Saldo | C25: =C23-C24 -> R$28,700.00

Sheet Instruções
